[Event "St. Petersburg-ch 2021"]
[Site "St. Petersburg"]
[Date "2021.03.27"]
[Round "3.1"]
[White "Goganov, Aleksey"]
[Black "Schekachikhin, Maksim"]
[Result "1-0"]
[ECO "A23"]
[WhiteElo "2575"]
[BlackElo "2417"]
[Annotator "ChessBase"]
[PlyCount "99"]
[EventDate "2021.03.25"]
[EventType "swiss"]
[EventCountry "RUS"]
[SourceTitle "playchess.com"]
[Source "ChessBase"]
[SourceQuality "1"]
[TimeControl "40/5400+30:1800+30"]

1. g3 {[%emt 0:01:00]} e5 {[%emt 0:02:52]} 2. c4 {[%emt 0:02:27]} Nf6 {[%emt 0:00:26]} 3. Bg2 {[%emt 0:00:44]} Bc5 {[%emt 0:04:18]} 4. Nc3 {[%emt 0:02:17]} c6 {[%emt 0:00:21]} 5. e3 {[%emt 0:02:50]} O-O {[%emt 0:00:55]} 6. Nge2 {[%emt 0:00:43]} d5 {[%emt 0:00:53]} 7. cxd5 {[%emt 0:00:53]} cxd5 {[%emt 0:00:22]} 8. d4 {[%emt 0:00:45]} exd4 {[%emt 0:00:07]} 9. exd4 {[%emt 0:00:49]} Bb6 {[%emt 0:16:44]} 10. O-O {[%emt 0:04:44]} Bg4 {[%emt 0:08:56]} 11. Bg5 {[%emt 0:12:19]} Re8 {[%emt 0:06:44]} 12. Bxf6 {[%emt 0:12:18]} Qxf6 {[%emt 0:07:12]} 13. Nxd5 {[%emt 0:01:58]} Qd6 {[%emt 0:00:54]} 14. Nxb6 {[%emt 0:18:28]} Qxb6 {[%emt 0:14:04]} 15. Re1 {[%emt 0:02:52]} Nc6 {[%emt 0:01:42]} 16. Qd2 {[%emt 0:05:37]} Bxe2 {[%emt 0:03:21]} 17. Bxc6 {[%emt 0:00:13]} bxc6 {[%emt 0:00:50]} 18. Rxe2 {[%emt 0:00:03]} Rxe2 {[%emt 0:00:06]} 19. Qxe2 {[%emt 0:00:02]} Qxd4 {[%emt 0:00:08]} 20. Rd1 {[%emt 0:01:45]} Qf6 {[%emt 0:02:59]} 21. Rd7 {[%emt 0:02:34]} g6 {[%emt 0:00:59]} 22. b4 {[%emt 0:03:09]} Kg7 {[%emt 0:05:02]} 23. Qc4 {[%emt 0:01:50]} Qf3 {[%emt 0:09:59]} 24. Rd3 {[%emt 0:00:55]} Qf6 {[%emt 0:01:51]} 25. Kg2 {[%emt 0:00:18]} Rb8 {[%emt 0:03:30]} 26. Rf3 {[%emt 0:02:04]} Qe6 {[%emt 0:01:28]} 27. Qd4+ {[%emt 0:00:48]} Kg8 {[%emt 0:00:06]} 28. a3 {[%emt 0:01:02]} Rb7 {[%emt 0:01:46]} 29. Rf6 {[%emt 0:02:44]} Qd5+ {[%emt 0:01:05]} 30. Qxd5 {[%emt 0:00:06]} cxd5 {[%emt 0:00:01]} 31. Ra6 {[%emt 0:00:18]} Kg7 {[%emt 0:05:01]} 32. Kf3 {[%emt 0:00:21]} h5 {[%emt 0:00:10]} 33. h4 {[%emt 0:05:24]} Re7 {[%emt 0:00:54]} 34. Ra5 {[%emt 0:00:57]} d4 {[%emt 0:00:25]} 35. Rd5 {[%emt 0:00:21]} Rc7 {[%emt 0:00:26]} 36. Ke4 {[%emt 0:00:16]} Rc2 {[%emt 0:00:35]} 37. Ra5 {[%emt 0:00:17]} Rxf2 {[%emt 0:00:27]} 38. Rxa7 {[%emt 0:00:13]} g5 {[%emt 0:00:34]} 39. hxg5 {[%emt 0:03:45]} Kg6 {[%emt 0:00:07]} 40. b5 {[%emt 0:00:00]} Kxg5 {[%emt 0:00:00]} 41. b6 {[%emt 0:09:49]} Rb2 {[%emt 0:17:15]} 42. b7 {[%emt 0:00:05]} Kg4 {[%emt 0:02:12]} 43. Kxd4 {[%emt 0:01:40]} Kxg3 {[%emt 0:01:30]} 44. Kc3 {[%emt 0:00:11]} Rb1 {[%emt 0:02:11]} 45. Kc2 {[%emt 0:00:08]} Rb6 {[%emt 0:01:25]} 46. a4 {[%emt 0:00:07]} h4 {[%emt 0:00:33]} 47. a5 {[%emt 0:00:04]} Rb5 {[%emt 0:00:02]} 48. a6 {[%emt 0:00:12]} h3 {[%emt 0:00:04]} 49. Ra8 {[%emt 0:00:04]} h2 {[%emt 0:00:03]} 50. Rh8 {[%emt 0:00:45]} 1-0

[Event "St. Petersburg-ch 2021"]
[Site "St. Petersburg"]
[Date "2021.03.27"]
[Round "3.2"]
[White "Shubin, Kirill"]
[Black "Epishin, Vladimir"]
[Result "1-0"]
[ECO "B40"]
[WhiteElo "2466"]
[BlackElo "2527"]
[Annotator "ChessBase"]
[PlyCount "54"]
[EventDate "2021.03.25"]
[EventType "swiss"]
[EventCountry "RUS"]
[SourceTitle "playchess.com"]
[Source "ChessBase"]
[SourceQuality "1"]
[TimeControl "40/5400+30:1800+30"]

1. e4 {[%emt 0:00:00]} c5 {[%emt 0:02:11]} 2. Nf3 {[%emt 0:00:00]} e6 {[%emt 0:00:16]} 3. g3 {[%emt 0:00:00]} d6 {[%emt 0:04:02]} 4. Bg2 {[%emt 0:00:09]} Nd7 {[%emt 0:00:39]} 5. O-O {[%emt 0:01:37]} Be7 {[%emt 0:00:06]} 6. c3 {[%emt 0:04:08]} Ngf6 {[%emt 0:02:50]} 7. Re1 {[%emt 0:00:38]} O-O {[%emt 0:03:27]} 8. d4 {[%emt 0:00:48]} d5 {[%emt 0:02:21]} 9. exd5 {[%emt 0:07:44]} exd5 {[%emt 0:02:11]} 10. Nbd2 {[%emt 0:05:52]} Re8 {[%emt 0:02:06]} 11. Nf1 {[%emt 0:05:53]} h6 {[%emt 0:05:05]} 12. Bf4 {[%emt 0:06:30]} Nb6 {[%emt 0:03:36]} 13. Ne3 {[%emt 0:06:51]} c4 {[%emt 0:07:45]} 14. Qc2 {[%emt 0:02:25]} Bf8 {[%emt 0:01:16]} 15. h3 {[%emt 0:03:42]} Be6 {[%emt 0:01:19]} 16. g4 {[%emt 0:00:48]} Nc8 {[%emt 0:07:49]} 17. Ne5 {[%emt 0:00:31]} Ne7 {[%emt 0:04:14]} 18. Bh2 {[%emt 0:02:34]} b5 {[%emt 0:07:43]} 19. f4 {[%emt 0:01:08]} a5 {[%emt 0:00:12]} 20. f5 {[%emt 0:01:24]} Bc8 {[%emt 0:00:36]} 21. h4 {[%emt 0:01:46]} Ra6 {[%emt 0:00:21]} 22. g5 {[%emt 0:05:41]} hxg5 {[%emt 0:01:27]} 23. hxg5 {[%emt 0:00:04]} Nh7 {[%emt 0:01:00]} 24. f6 {[%emt 0:01:41]} gxf6 {[%emt 0:00:41]} 25. Nxf7 {[%emt 0:00:07]} Qd7 {[%emt 0:00:10]} 26. Nxd5 {[%emt 0:03:32]} fxg5 {[%emt 0:02:34]} 27. Nc7 {[%emt 0:02:57]} Nf5 {[%emt 0:07:52]} 1-0

[Event "St. Petersburg-ch 2021"]
[Site "St. Petersburg"]
[Date "2021.03.27"]
[Round "3.3"]
[White "Lesovoi, Evgenij"]
[Black "Alekseev, Evgeny"]
[Result "0-1"]
[ECO "D38"]
[WhiteElo "2347"]
[BlackElo "2619"]
[Annotator "ChessBase"]
[PlyCount "104"]
[EventDate "2021.03.25"]
[EventType "swiss"]
[EventCountry "RUS"]
[SourceTitle "playchess.com"]
[Source "ChessBase"]
[SourceQuality "1"]
[TimeControl "40/5400+30:1800+30"]

1. d4 {[%emt 0:01:43]} Nf6 {[%emt 0:12:38]} 2. c4 {[%emt 0:00:12]} e6 {[%emt 0:00:05]} 3. Nf3 {[%emt 0:00:17]} d5 {[%emt 0:00:46]} 4. Nc3 {[%emt 0:00:31]} Nbd7 {[%emt 0:09:20]} 5. Bg5 {[%emt 0:06:24]} Bb4 {[%emt 0:07:42]} 6. e3 {[%emt 0:06:51]} c5 {[%emt 0:00:50]} 7. cxd5 {[%emt 0:02:06]} exd5 {[%emt 0:00:45]} 8. Bd3 {[%emt 0:00:34]} c4 {[%emt 0:01:58]} 9. Bf5 {[%emt 0:01:09]} Qa5 {[%emt 0:00:40]} 10. O-O {[%emt 0:10:03]} O-O {[%emt 0:01:01]} 11. Qc2 {[%emt 0:02:05]} Re8 {[%emt 0:01:09]} 12. a3 {[%emt 0:01:49]} Bxc3 {[%emt 0:01:38]} 13. Qxc3 {[%emt 0:01:34]} Qxc3 {[%emt 0:02:00]} 14. bxc3 {[%emt 0:00:05]} Ne4 {[%emt 0:15:16]} 15. Bxe4 {[%emt 0:04:22]} Rxe4 {[%emt 0:00:46]} 16. Rfb1 {[%emt 0:03:11]} Re6 {[%emt 0:02:12]} 17. Nd2 {[%emt 0:11:22]} Nb6 {[%emt 0:05:01]} 18. a4 {[%emt 0:13:05]} Bd7 {[%emt 0:11:01]} 19. a5 {[%emt 0:00:29]} Na4 {[%emt 0:00:10]} 20. Ra3 {[%emt 0:00:28]} f6 {[%emt 0:04:17]} 21. Bf4 {[%emt 0:01:50]} b5 {[%emt 0:00:37]} 22. axb6 {[%emt 0:00:30]} Rxb6 {[%emt 0:00:54]} 23. f3 {[%emt 0:08:29]} Rxb1+ {[%emt 0:04:09]} 24. Nxb1 {[%emt 0:00:03]} g5 {[%emt 0:00:18]} 25. Bg3 {[%emt 0:00:02]} Re8 {[%emt 0:00:37]} 26. Kf2 {[%emt 0:02:01]} Nb2 {[%emt 0:04:43]} 27. Rxa7 {[%emt 0:05:09]} Bf5 {[%emt 0:01:01]} 28. e4 {[%emt 0:01:57]} dxe4 {[%emt 0:00:04]} 29. fxe4 {[%emt 0:00:05]} Bxe4 {[%emt 0:00:41]} 30. Nd2 {[%emt 0:00:10]} Nd1+ {[%emt 0:00:45]} 31. Kg1 {[%emt 0:00:38]} Bd5 {[%emt 0:01:40]} 32. Rc7 {[%emt 0:06:02]} Re2 {[%emt 0:02:49]} 33. Nxc4 {[%emt 0:00:07]} Rxg2+ {[%emt 0:00:12]} 34. Kf1 {[%emt 0:00:06]} Rc2 {[%emt 0:03:14]} 35. Ke1 {[%emt 0:00:48]} Nxc3 {[%emt 0:00:30]} 36. Nd2 {[%emt 0:00:55]} h5 {[%emt 0:01:30]} 37. Rc5 {[%emt 0:01:13]} h4 {[%emt 0:01:11]} 38. Bc7 {[%emt 0:00:11]} g4 {[%emt 0:00:36]} 39. Bf4 {[%emt 0:01:43]} Kf7 {[%emt 0:00:26]} 40. Bc7 {[%emt 0:00:00]} Kg6 {[%emt 0:00:00]} 41. Bf4 {[%emt 0:02:37]} Kf7 {[%emt 0:07:25]} 42. Bc7 {[%emt 0:02:28]} Ke6 {[%emt 0:00:15]} 43. Bf4 {[%emt 0:00:12]} Kf5 {[%emt 0:10:07]} 44. Bc7 {[%emt 0:01:09]} g3 {[%emt 0:02:58]} 45. hxg3 {[%emt 0:00:06]} h3 {[%emt 0:00:03]} 46. g4+ {[%emt 0:00:24]} Kxg4 {[%emt 0:00:17]} 47. Bd6 {[%emt 0:00:24]} f5 {[%emt 0:03:57]} 48. Rc7 {[%emt 0:00:24]} f4 {[%emt 0:00:33]} 49. Rg7+ {[%emt 0:00:33]} Kf5 {[%emt 0:00:04]} 50. Rh7 {[%emt 0:00:06]} Rc1+ {[%emt 0:01:27]} 51. Kf2 {[%emt 0:00:07]} Rd1 {[%emt 0:00:40]} 52. Nf1 {[%emt 0:01:14]} Bc4 {[%emt 0:01:27]} 0-1

[Event "St. Petersburg-ch 2021"]
[Site "St. Petersburg"]
[Date "2021.03.27"]
[Round "3.4"]
[White "Lobanov, Sergei"]
[Black "Palchun, Grigory"]
[Result "1-0"]
[ECO "C72"]
[WhiteElo "2516"]
[BlackElo "2359"]
[Annotator "ChessBase"]
[PlyCount "67"]
[EventDate "2021.03.25"]
[EventType "swiss"]
[EventCountry "RUS"]
[SourceTitle "playchess.com"]
[Source "ChessBase"]
[SourceQuality "1"]
[TimeControl "40/5400+30:1800+30"]

1. e4 {[%emt 0:02:49]} e5 {[%emt 0:00:00]} 2. Nf3 {[%emt 0:00:04]} Nc6 {[%emt 0:00:00]} 3. Bb5 {[%emt 0:00:08]} a6 {[%emt 0:00:00]} 4. Ba4 {[%emt 0:00:04]} d6 {[%emt 0:00:00]} 5. O-O {[%emt 0:00:05]} Bd7 {[%emt 0:00:00]} 6. c4 {[%emt 0:00:06]} Nf6 {[%emt 0:01:32]} 7. Nc3 {[%emt 0:00:28]} Be7 {[%emt 0:00:30]} 8. d4 {[%emt 0:00:36]} exd4 {[%emt 0:01:43]} 9. Nxd4 {[%emt 0:00:33]} Nxd4 {[%emt 0:01:03]} 10. Bxd7+ {[%emt 0:03:29]} Nxd7 {[%emt 0:01:34]} 11. Qxd4 {[%emt 0:00:02]} Bf6 {[%emt 0:00:26]} 12. Qd3 {[%emt 0:09:53]} Nc5 {[%emt 0:01:10]} 13. Qc2 {[%emt 0:00:06]} O-O {[%emt 0:02:11]} 14. Bd2 {[%emt 0:00:35]} Re8 {[%emt 0:03:31]} 15. Rae1 {[%emt 0:01:13]} b5 {[%emt 0:14:56]} 16. b4 {[%emt 0:01:33]} Ne6 {[%emt 0:09:27]} 17. Nd5 {[%emt 0:04:48]} Bd4 {[%emt 0:03:11]} 18. Kh1 {[%emt 0:05:42]} c6 {[%emt 0:09:56]} 19. Ne3 {[%emt 0:00:05]} c5 {[%emt 0:06:37]} 20. Nf5 {[%emt 0:07:25]} Bf6 {[%emt 0:15:33]} 21. Bc3 {[%emt 0:12:44]} Bxc3 {[%emt 0:00:17]} 22. Qxc3 {[%emt 0:00:07]} Qb6 {[%emt 0:00:25]} 23. Rd1 {[%emt 0:03:06]} Rad8 {[%emt 0:03:26]} 24. a3 {[%emt 0:19:46]} f6 {[%emt 0:05:50]} 25. h4 {[%emt 0:07:57]} Qc6 {[%emt 0:03:08]} 26. cxb5 {[%emt 0:03:37]} axb5 {[%emt 0:01:37]} 27. Qg3 {[%emt 0:00:04]} d5 {[%emt 0:01:55]} 28. exd5 {[%emt 0:04:02]} Rxd5 {[%emt 0:00:05]} 29. Qf3 {[%emt 0:00:16]} Rxd1 {[%emt 0:06:10]} 30. Qxc6 {[%emt 0:00:33]} Rxf1+ {[%emt 0:00:06]} 31. Kh2 {[%emt 0:00:00]} Kf8 {[%emt 0:00:36]} 32. Qd6+ {[%emt 0:00:24]} Kf7 {[%emt 0:00:19]} 33. Qd7+ {[%emt 0:00:08]} Kf8 {[%emt 0:00:02]} 34. Nd6 {[%emt 0:14:32]} 1-0

[Event "St. Petersburg-ch 2021"]
[Site "St. Petersburg"]
[Date "2021.03.27"]
[Round "3.5"]
[White "Donskov, Anatoly"]
[Black "Levin, Evgeny A."]
[Result "1/2-1/2"]
[ECO "B96"]
[WhiteElo "2286"]
[BlackElo "2502"]
[Annotator "ChessBase"]
[PlyCount "97"]
[EventDate "2021.03.25"]
[EventType "swiss"]
[EventCountry "RUS"]
[SourceTitle "playchess.com"]
[Source "ChessBase"]
[SourceQuality "1"]
[TimeControl "40/5400+30:1800+30"]

1. e4 {[%emt 0:00:00]} c5 {[%emt 0:01:12]} 2. Nf3 {[%emt 0:00:00]} d6 {[%emt 0:00:05]} 3. d4 {[%emt 0:00:00]} cxd4 {[%emt 0:00:05]} 4. Nxd4 {[%emt 0:00:00]} Nf6 {[%emt 0:00:08]} 5. Nc3 {[%emt 0:00:00]} a6 {[%emt 0:00:05]} 6. Bg5 {[%emt 0:00:00]} e6 {[%emt 0:01:19]} 7. f4 {[%emt 0:00:00]} Nbd7 {[%emt 0:00:08]} 8. Qf3 {[%emt 0:00:00]} Qc7 {[%emt 0:00:18]} 9. O-O-O {[%emt 0:00:18]} b5 {[%emt 0:03:43]} 10. a3 {[%emt 0:00:01]} Bb7 {[%emt 0:01:24]} 11. g4 {[%emt 0:00:07]} O-O-O {[%emt 0:21:56]} 12. f5 {[%emt 0:00:17]} e5 {[%emt 0:00:27]} 13. Nb3 {[%emt 0:05:24]} h6 {[%emt 0:14:31]} 14. Bxf6 {[%emt 0:01:15]} Nxf6 {[%emt 0:00:04]} 15. Nd5 {[%emt 0:00:05]} Nxd5 {[%emt 0:01:16]} 16. exd5 {[%emt 0:00:12]} Be7 {[%emt 0:04:38]} 17. Kb1 {[%emt 0:06:05]} Kb8 {[%emt 0:00:32]} 18. h4 {[%emt 0:03:17]} Rc8 {[%emt 0:00:55]} 19. Qe4 {[%emt 0:00:20]} Qb6 {[%emt 0:04:28]} 20. a4 {[%emt 0:02:05]} bxa4 {[%emt 0:02:45]} 21. Qxa4 {[%emt 0:00:23]} Bd8 {[%emt 0:00:58]} 22. Rh3 {[%emt 0:08:50]} Ka7 {[%emt 0:11:13]} 23. Nd2 {[%emt 0:08:21]} Qd4 {[%emt 0:04:50]} 24. Qxd4+ {[%emt 0:09:39]} exd4 {[%emt 0:00:06]} 25. Ne4 {[%emt 0:00:32]} Bxd5 {[%emt 0:00:23]} 26. Nxd6 {[%emt 0:10:21]} Rc6 {[%emt 0:00:22]} 27. Rxd4 {[%emt 0:00:50]} Rxd6 {[%emt 0:00:08]} 28. Rhd3 {[%emt 0:02:49]} Bf6 {[%emt 0:02:49]} 29. Rxd5 {[%emt 0:00:08]} Rxd5 {[%emt 0:00:02]} 30. Rxd5 {[%emt 0:00:05]} Rd8 {[%emt 0:00:03]} 31. Rxd8 {[%emt 0:01:19]} Bxd8 {[%emt 0:00:04]} 32. h5 {[%emt 0:00:14]} Bg5 {[%emt 0:01:24]} 33. Bc4 {[%emt 0:00:08]} f6 {[%emt 0:00:21]} 34. Ka2 {[%emt 0:01:03]} a5 {[%emt 0:00:43]} 35. Kb3 {[%emt 0:00:08]} Kb6 {[%emt 0:00:22]} 36. Bf7 {[%emt 0:01:01]} Kc5 {[%emt 0:00:24]} 37. Kc3 {[%emt 0:02:53]} Bc1 {[%emt 0:00:19]} 38. Be8 {[%emt 0:00:22]} Bf4 {[%emt 0:00:34]} 39. Kb3 {[%emt 0:01:03]} Bc1 {[%emt 0:00:05]} 40. c3 {[%emt 0:00:00]} Bd2 {[%emt 0:00:00]} 41. Ka4 {[%emt 0:00:59]} Kb6 {[%emt 0:01:38]} 42. Bf7 {[%emt 0:04:28]} Be1 {[%emt 0:00:28]} 43. Kb3 {[%emt 0:00:16]} Kc5 {[%emt 0:00:06]} 44. Kc2 {[%emt 0:00:04]} Bg3 {[%emt 0:00:26]} 45. Kd3 {[%emt 0:00:15]} Bf4 {[%emt 0:00:08]} 46. Be8 {[%emt 0:08:53]} Bc1 {[%emt 0:00:55]} 47. b3 {[%emt 0:00:08]} Bf4 {[%emt 0:00:24]} 48. Ke4 {[%emt 0:00:43]} Bd2 {[%emt 0:00:08]} 49. Kd3 {[%emt 0:00:56]} 1/2-1/2

[Event "St. Petersburg-ch 2021"]
[Site "St. Petersburg"]
[Date "2021.03.27"]
[Round "3.6"]
[White "Saveliev, Alexei"]
[Black "Usmanov, Vasily"]
[Result "0-1"]
[ECO "C42"]
[WhiteElo "2358"]
[BlackElo "2447"]
[Annotator "NA"]
[PlyCount "94"]
[EventDate "2021.03.25"]
[EventType "swiss"]
[EventCountry "RUS"]
[SourceTitle "playchess.com"]
[Source "ChessBase"]
[SourceQuality "1"]
[TimeControl "40/5400+30:1800+30"]

1. e4 {[%emt 0:00:00]} e5 {[%emt 0:02:42]} 2. Nf3 {[%emt 0:00:00]} Nf6 {[%emt 0:00:04]} 3. Nxe5 {[%emt 0:22:03]} d6 {[%emt 0:04:03]} 4. Nf3 {[%emt 0:00:17]} Nxe4 {[%emt 0:00:02]} 5. Qe2 {[%emt 0:00:06]} Qe7 {[%emt 0:00:19]} 6. d3 {[%emt 0:00:04]} Nf6 {[%emt 0:00:04]} 7. Bg5 {[%emt 0:00:03]} Nbd7 {[%emt 0:00:41]} 8. h3 {[%emt 0:02:49]} h6 {[%emt 0:00:25]} 9. Bf4 {[%emt 0:00:59]} Nd5 {[%emt 0:04:28]} 10. Bd2 {[%emt 0:00:15]} Nc5 {[%emt 0:00:44]} 11. g3 {[%emt 0:28:42]} Bd7 {[%emt 0:03:14]} 12. b4 {[%emt 0:16:11]} Ne6 {[%emt 0:07:23]} 13. Bg2 {[%emt 0:00:20]} O-O-O {[%emt 0:17:17]} 14. d4 {[%emt 0:00:47]} Re8 {[%emt 0:08:17]} 15. O-O {[%emt 0:00:33]} Ng5 {[%emt 0:00:22]} 16. Qxe7 {[%emt 0:00:38]} Nxf3+ {[%emt 0:00:04]} 17. Bxf3 {[%emt 0:00:03]} Nxe7 {[%emt 0:00:03]} 18. Kg2 {[%emt 0:00:31]} g5 {[%emt 0:10:17]} 19. Re1 {[%emt 0:04:07]} Bg7 {[%emt 0:01:07]} 20. c3 {[%emt 0:00:03]} Bf6 {[%emt 0:02:33]} 21. Na3 {[%emt 0:01:38]} h5 {[%emt 0:00:51]} 22. Nc2 {[%emt 0:00:50]} g4 {[%emt 0:00:49]} 23. hxg4 {[%emt 0:00:29]} hxg4 {[%emt 0:00:02]} 24. Be4 {[%emt 0:00:06]} Rh3 {[%emt 0:11:21]} 25. Kg1 {[%emt 0:14:58]} Reh8 {[%emt 0:01:12]} 26. Ne3 {[%emt 0:00:43]} R3h5 {[%emt 0:04:02]} 27. Rac1 {[%emt 0:03:12]} Be6 {[%emt 0:07:10]} 28. Bg2 {[%emt 0:00:44]} c6 {[%emt 0:00:27]} 29. a4 {[%emt 0:00:43]} a5 {[%emt 0:00:25]} 30. bxa5 {[%emt 0:01:12]} Rxa5 {[%emt 0:00:05]} 31. d5 {[%emt 0:01:23]} Nxd5 {[%emt 0:02:56]} 32. c4 {[%emt 0:00:53]} Nxe3 {[%emt 0:00:28]} 33. Bxa5 {[%emt 0:00:11]} Nxg2 {[%emt 0:00:10]} 34. Kxg2 {[%emt 0:00:05]} Rh5 {[%emt 0:06:15]} 35. Bb6 {[%emt 0:00:59]} d5 {[%emt 0:00:17]} 36. f3 {[%emt 0:00:44]} gxf3+ {[%emt 0:01:48]} 37. Kxf3 {[%emt 0:00:01]} Rf5+ {[%emt 0:01:09]} 38. Kg2 {[%emt 0:00:21]} dxc4 {[%emt 0:00:05]} 39. Rxe6 {[%emt 0:01:06]} fxe6 {[%emt 0:00:05]} 40. Rxc4 {[%emt 0:00:00]} Kd7 {[%emt 0:00:00]} 41. Rg4 {[%emt 0:01:32]} Bg5 {[%emt 0:02:03]} 42. Re4 {[%emt 0:02:19]} c5 {[%emt 0:02:34]} 43. Kh3 {[%emt 0:02:33]} Kd6 {[%emt 0:00:29]} 44. Kg4 {[%emt 0:00:28]} Bd2 {[%emt 0:01:15]} 45. Rc4 {[%emt 0:01:47]} Kc6 {[%emt 0:00:40]} 46. Ba7 {[%emt 0:00:58]} b6 {[%emt 0:00:54]} 47. Re4 {[%emt 0:00:11]} Kb7 {[%emt 0:01:57]} 0-1

[Event "St. Petersburg-ch 2021"]
[Site "St. Petersburg"]
[Date "2021.03.28"]
[Round "4.3"]
[White "Usmanov, Vasily"]
[Black "Lobanov, Sergei"]
[Result "1/2-1/2"]
[ECO "D85"]
[WhiteElo "2447"]
[BlackElo "2516"]
[Annotator "ChessBase"]
[PlyCount "51"]
[EventDate "2021.03.25"]
[EventType "swiss"]
[EventCountry "RUS"]
[SourceTitle "playchess.com"]
[Source "ChessBase"]
[SourceQuality "1"]
[TimeControl "40/5400+30:1800+30"]

1. c4 {[%emt 0:04:19]} Nf6 {[%emt 0:00:00]} 2. d4 {[%emt 0:00:05]} g6 {[%emt 0:00:15]} 3. Nc3 {[%emt 0:00:09]} d5 {[%emt 0:00:05]} 4. cxd5 {[%emt 0:00:07]} Nxd5 {[%emt 0:00:04]} 5. e4 {[%emt 0:00:04]} Nxc3 {[%emt 0:00:08]} 6. bxc3 {[%emt 0:00:02]} Bg7 {[%emt 0:00:08]} 7. Nf3 {[%emt 0:00:08]} c5 {[%emt 0:00:11]} 8. Rb1 {[%emt 0:01:10]} O-O {[%emt 0:00:55]} 9. Be2 {[%emt 0:00:57]} cxd4 {[%emt 0:01:36]} 10. cxd4 {[%emt 0:00:06]} Qa5+ {[%emt 0:00:06]} 11. Bd2 {[%emt 0:01:17]} Qxa2 {[%emt 0:00:22]} 12. O-O {[%emt 0:00:30]} Bg4 {[%emt 0:03:15]} 13. Rxb7 {[%emt 0:01:34]} Bxf3 {[%emt 0:03:32]} 14. Bxf3 {[%emt 0:00:10]} Bxd4 {[%emt 0:01:04]} 15. e5 {[%emt 0:00:54]} Na6 {[%emt 0:00:49]} 16. Rxe7 {[%emt 0:00:34]} Rad8 {[%emt 0:01:29]} 17. e6 {[%emt 0:00:59]} fxe6 {[%emt 0:03:11]} 18. Qe1 {[%emt 0:00:06]} Nc5 {[%emt 0:00:45]} 19. Be3 {[%emt 0:00:34]} Nd3 {[%emt 0:03:41]} 20. Bxd4 {[%emt 0:00:24]} Nxe1 {[%emt 0:02:10]} 21. Rg7+ {[%emt 0:00:09]} Kh8 {[%emt 0:00:06]} 22. Rd7+ {[%emt 0:00:10]} Kg8 {[%emt 0:00:20]} 23. Rg7+ {[%emt 0:00:07]} Kh8 {[%emt 0:00:04]} 24. Rd7+ {[%emt 0:00:05]} Kg8 {[%emt 0:00:14]} 25. Rg7+ {[%emt 0:00:08]} Kh8 {[%emt 0:00:05]} 26. Rd7+ {[%emt 1:28:12]} 1/2-1/2

[Event "St. Petersburg-ch 2021"]
[Site "St. Petersburg"]
[Date "2021.03.28"]
[Round "4.5"]
[White "Schekachikhin, Maksim"]
[Black "Donskov, Anatoly"]
[Result "0-1"]
[ECO "D23"]
[WhiteElo "2417"]
[BlackElo "2286"]
[Annotator "NA"]
[PlyCount "38"]
[EventDate "2021.03.25"]
[EventType "swiss"]
[EventCountry "RUS"]
[SourceTitle "playchess.com"]
[Source "ChessBase"]
[SourceQuality "1"]
[TimeControl "40/5400+30:1800+30"]

1. d4 {[%emt 0:00:00]} d5 {[%emt 0:00:19]} 2. Nf3 {[%emt 0:00:30]} Nf6 {[%emt 0:00:07]} 3. c4 {[%emt 0:01:24]} dxc4 {[%emt 0:02:17]} 4. Qa4+ {[%emt 0:00:56]} Nbd7 {[%emt 0:19:56]} 5. Nc3 {[%emt 0:07:46]} e6 {[%emt 0:06:19]} 6. Bg5 {[%emt 0:19:19]} h6 {[%emt 0:04:58]} 7. Bh4 {[%emt 0:04:25]} Be7 {[%emt 0:00:35]} 8. Rd1 {[%emt 0:00:49]} O-O {[%emt 0:00:40]} 9. Qxc4 {[%emt 0:00:18]} a6 {[%emt 0:00:54]} 10. a4 {[%emt 0:09:43]} b5 {[%emt 0:08:14]} 11. axb5 {[%emt 0:01:34]} axb5 {[%emt 0:01:51]} 12. Qxb5 {[%emt 0:00:54]} Rb8 {[%emt 0:00:44]} 13. Qd3 {[%emt 0:14:02]} Rxb2 {[%emt 0:00:40]} 14. Bxf6 {[%emt 0:10:04]} Nxf6 {[%emt 0:00:41]} 15. Rd2 {[%emt 0:06:04]} Rb3 {[%emt 0:14:05]} 16. Qc2 {[%emt 0:02:45]} Ra3 {[%emt 0:01:24]} 17. Qb2 {[%emt 0:02:54]} Bd7 {[%emt 0:08:22]} 18. e3 {[%emt 0:02:20]} Qa8 {[%emt 0:00:51]} 19. Be2 {[%emt 0:04:46]} Rb8 {[%emt 0:00:31]} 0-1

[Event "St. Petersburg-ch 2021"]
[Site "St. Petersburg"]
[Date "2021.03.29"]
[Round "5.5"]
[White "Lesovoi, Evgenij"]
[Black "Epishin, Vladimir"]
[Result "1/2-1/2"]
[ECO "D36"]
[WhiteElo "2347"]
[BlackElo "2527"]
[Annotator "ChessBase"]
[PlyCount "80"]
[EventDate "2021.03.25"]
[EventType "swiss"]
[EventCountry "RUS"]
[SourceTitle "playchess.com"]
[Source "ChessBase"]
[SourceQuality "1"]
[TimeControl "40/5400+30:1800+30"]

1. d4 {[%emt 0:00:00]} d5 {[%emt 0:01:35]} 2. c4 {[%emt 0:00:00]} e6 {[%emt 0:00:06]} 3. Nc3 {[%emt 0:00:08]} Be7 {[%emt 0:00:45]} 4. Nf3 {[%emt 0:00:19]} Nf6 {[%emt 0:00:11]} 5. cxd5 {[%emt 0:00:22]} exd5 {[%emt 0:01:35]} 6. Bg5 {[%emt 0:00:08]} c6 {[%emt 0:02:03]} 7. Qc2 {[%emt 0:00:31]} Bg4 {[%emt 0:04:08]} 8. Ne5 {[%emt 0:04:50]} Nbd7 {[%emt 0:05:44]} 9. Nxg4 {[%emt 0:06:43]} Nxg4 {[%emt 0:02:23]} 10. Bf4 {[%emt 0:00:23]} Nf8 {[%emt 0:02:28]} 11. e3 {[%emt 0:23:23]} Ne6 {[%emt 0:04:32]} 12. Bg3 {[%emt 0:00:40]} Bd6 {[%emt 0:01:22]} 13. Bd3 {[%emt 0:01:19]} g6 {[%emt 0:01:36]} 14. Bxd6 {[%emt 0:06:04]} Qxd6 {[%emt 0:00:03]} 15. h3 {[%emt 0:00:11]} Nf6 {[%emt 0:00:05]} 16. O-O-O {[%emt 0:00:26]} O-O-O {[%emt 0:03:30]} 17. Kb1 {[%emt 0:01:14]} Kb8 {[%emt 0:00:05]} 18. Rc1 {[%emt 0:01:32]} Rc8 {[%emt 0:02:18]} 19. Na4 {[%emt 0:01:44]} Nd7 {[%emt 0:00:19]} 20. a3 {[%emt 0:01:41]} c5 {[%emt 0:06:15]} 21. dxc5 {[%emt 0:03:18]} Ndxc5 {[%emt 0:00:11]} 22. Nxc5 {[%emt 0:00:22]} Rxc5 {[%emt 0:05:35]} 23. Qd2 {[%emt 0:01:17]} Rd8 {[%emt 0:04:13]} 24. Rxc5 {[%emt 0:03:03]} Nxc5 {[%emt 0:01:24]} 25. Bc2 {[%emt 0:00:18]} d4 {[%emt 0:06:35]} 26. Qxd4 {[%emt 0:02:50]} Qxd4 {[%emt 0:04:42]} 27. exd4 {[%emt 0:00:13]} Rxd4 {[%emt 0:00:04]} 28. Re1 {[%emt 0:00:22]} Kc7 {[%emt 0:00:38]} 29. Kc1 {[%emt 0:04:15]} Nd3+ {[%emt 0:01:09]} 30. Bxd3 {[%emt 0:00:09]} Rxd3 {[%emt 0:00:04]} 31. Kc2 {[%emt 0:00:29]} Rd7 {[%emt 0:00:14]} 32. Kc3 {[%emt 0:00:27]} h5 {[%emt 0:00:20]} 33. h4 {[%emt 0:00:14]} Kc6 {[%emt 0:00:08]} 34. g3 {[%emt 0:00:28]} Rd5 {[%emt 0:00:08]} 35. Re7 {[%emt 0:00:48]} Rf5 {[%emt 0:00:41]} 36. f4 {[%emt 0:00:08]} a5 {[%emt 0:00:11]} 37. a4 {[%emt 0:00:36]} b5 {[%emt 0:01:19]} 38. axb5+ {[%emt 0:00:15]} Kxb5 {[%emt 0:00:05]} 39. Rb7+ {[%emt 0:00:35]} Kc6 {[%emt 0:00:06]} 40. Re7 {[%emt 0:00:00]} Kd6 {[%emt 0:00:00]} 1/2-1/2